lending/lending_fUSD_20250719
["ID","MTS","AMOUNT","RATE_DAILY","PERIOD"]
[373283853,1752927117739,-780.96578172,0.00031,60]
[373283854,1752927118005,-251.59000002,0.00019178,2]
[373283855,1752927118027,-228.40999998,0.00019178,2]
[373283856,1752927118037,-314.37683026,0.00019178,2]
[373283857,1752927118048,-165.62316974,0.00019178,2]
[373283858,1752927118059,-461.40603657,0.00019178,2]
[373283859,1752927118069,-480.0,0.00019287,2]
[373283860,1752927118079,-480.0,0.00019287,2]
[373283861,1752927118089,-480.0,0.00019397,2]
[373283862,1752927118099,-480.0,0.00019397,2]
[373283863,1752927118109,-313.89,0.00019506,2]
[373283864,1752927118120,-480.0,0.00019506,2]
[373283865,1752927118130,-480.0,0.00019616,2]
[373283866,1752927118140,-480.0,0.00019726,2]
[373283867,1752927118151,-480.0,0.00019835,2]
[373283868,1752927118161,-480.0,0.00019835,2]
[373283869,1752927118171,-480.0,0.00019945,2]
[373283870,1752927118182,-480.0,0.00020054,2]
[373283871,1752927118409,-480.0,0.00020164,2]
[373283872,1752927118423,-480.0,0.00020273,2]
[373283873,1752927118433,-445.08,0.00020383,2]
[373283874,1752927118444,-569.84,0.00020493,2]
[373283875,1752927118454,-569.84,0.00020602,2]
[373283876,1752927118464,-569.84,0.00020712,2]
[373283877,1752927118475,-569.84,0.00020821,2]
[373283878,1752927118487,-569.84,0.00020931,2]
[373283879,1752927118499,-519.08,0.00021479,2]
[373283880,1752927118509,-519.08,0.00021589,2]
[373283881,1752927118519,-519.3,0.00021698,2]
[373283882,1752927118528,-153.0,0.00021918,2]
[373283883,1752927118538,-934074.55506551,0.00031,60]
[373283884,1752927118548,-105963.74667783,0.00031,120]
[373283885,1752927118560,-36205.64814126,0.00031,120]
[373283886,1752927118569,-15452.95372744,0.00031,120]
[373283887,1752927118580,-726.0,0.00031,30]
[373283888,1752927118591,-182.0,0.00031,30]
[373283889,1752927118602,-41695.48,0.00031,30]
[373283890,1752927118613,-5463.33,0.00031,7]
[373283891,1752927118623,-650.77438815,0.00031,2]
[373283892,1752927118633,-839.16344753,0.00031,120]
[373283893,1752927118643,-504.0,0.00031,6]
[373283894,1752927118652,-2100.0,0.00031052,7]
[373283895,1752927118662,-500.0,0.00031053,7]
[373283896,1752927118672,-500.0,0.00031054,7]
[373283897,1752927118682,-1000.0,0.00031066,7]
[373283898,1752927118692,-496.0,0.00031068,14]
[373283899,1752927118701,-2100.0,0.00031104,7]
[373283900,1752927118711,-553.04667185,0.0003112,7]
[373283901,1752927118720,-897.60227261,0.00031162,4]
[373283902,1752927118729,-681.03416829,0.00031162,4]
[373283903,1752927118739,-1122.3846211,0.00031162,4]
[373283904,1752927118750,-1600.0,0.0003124,7]
[373283905,1752927118759,-1000.0,0.00031245,7]
[373283906,1752927118769,-200.0,0.0003125,120]
[373283907,1752927118778,-200.0,0.0003125,120]
[373283908,1752927118787,-2500.0,0.00031258,7]
[373283909,1752927118797,-600.0,0.00031283,7]
[373283910,1752927118806,-1600.0,0.00031298,7]
[373283911,1752927118816,-328.82,0.000313,31]
[373283912,1752927118826,-328.82,0.000313,31]
[373283913,1752927118836,-328.82,0.000313,31]
[373283914,1752927118846,-328.82,0.000313,31]
[373283915,1752927118855,-328.82,0.000313,31]
[373283916,1752927118865,-328.82,0.000313,31]
[373283917,1752927118876,-328.82,0.000313,31]
[373283918,1752927118886,-328.82,0.000313,31]
[373283919,1752927118896,-328.82,0.000313,31]
[373283920,1752927118906,-328.82,0.000313,31]
[373283921,1752927118916,-328.82,0.000313,31]
[373283922,1752927118926,-328.82,0.000313,31]
[373283923,1752927118936,-328.82,0.000313,31]
[373283924,1752927118945,-328.82,0.000313,31]
[373283925,1752927118955,-328.82,0.000313,31]
[373283926,1752927118965,-328.82,0.000313,31]
[373283927,1752927118975,-328.82,0.000313,31]
[373283928,1752927118985,-328.82,0.000313,31]
[373283929,1752927118996,-328.82,0.000313,31]
[373283930,1752927119006,-328.82,0.000313,31]
[373283931,1752927119016,-328.82,0.000313,31]
[373283932,1752927119027,-328.82,0.000313,31]
[373283933,1752927119037,-328.82,0.000313,31]
[373283934,1752927119046,-328.82,0.000313,31]
[373283935,1752927119055,-800.0,0.00031308,7]
[373283936,1752927119065,-600.0,0.00031318,7]
[373283937,1752927119075,-500.0,0.00031322,7]
[373283938,1752927119084,-900.0,0.00031351,7]
[373283939,1752927119094,-990.30810374,0.00031361,7]
[373283940,1752927119104,-698.42093709,0.00031364,7]
[373283941,1752927119113,-1600.0,0.00031376,7]
[373283942,1752927119122,-301.30492711,0.000314,30]
[373283943,1752927119132,-2100.0,0.00031413,7]
[373283944,1752927119142,-19132.74730031,0.0003143,4]
[373283945,1752927119151,-165.55165103,0.00031442,7]
[373283946,1752927119160,-2500.0,0.00031443,7]
[373283947,1752927119170,-277.35679052,0.00031453,2]
[373283948,1752927119179,-900.0,0.0003149,7]
[373283949,1752927119189,-1000.0,0.00031493,7]
[373283950,1752927119198,-205.86,0.00031498,2]
[373283951,1752927119208,-150.0,0.000315,2]
[373283952,1752927119217,-192.52809252,0.000315,2]
[373283953,1752927119227,-1000.0,0.000315,30]
[373283954,1752927119236,-1304.0,0.00031507,2]
[373283955,1752927119245,-897.60227261,0.00031516,30]
[373283956,1752927119257,-681.03416829,0.00031516,30]
[373283957,1752927119266,-1122.3846211,0.00031516,30]
[373283958,1752927119276,-2500.0,0.00031524,7]
[373283959,1752927119285,-205.0,0.0003153,3]
[373283960,1752927119295,-496.0,0.00031535,14]
[373283961,1752927119304,-800.0,0.00031561,7]
[373283962,1752927119313,-500.0,0.00031561,7]
[373283963,1752927119323,-2100.0,0.00031588,7]
[373283964,1752927119333,-2100.0,0.0003159,7]
[373283965,1752927119342,-800.0,0.00031618,7]
[373283966,1752927119352,-500.0,0.00031629,7]
[373283967,1752927119361,-1500.0,0.0003164,5]
[373283968,1752927119370,-800.0,0.0003168,7]
[373283969,1752927119379,-800.0,0.00031683,7]
[373283970,1752927119388,-800.0,0.00031693,7]
[373283971,1752927119397,-800.0,0.0003171,7]
[373283972,1752927119408,-500.0,0.00031719,7]
[373283973,1752927119418,-800.0,0.00031724,7]
[373283974,1752927119427,-800.0,0.0003174,7]
[373283975,1752927119436,-1600.0,0.00031766,7]
[373283976,1752927119446,-2100.0,0.00031774,7]
[373283977,1752927119455,-2100.0,0.00031787,7]
[373283978,1752927119464,-800.0,0.00031789,7]
[373283979,1752927119473,-800.0,0.0003179,7]
[373283980,1752927119483,-600.0,0.00031795,7]
[373283981,1752927119492,-2100.0,0.00031824,7]
[373283982,1752927119503,-1600.0,0.00031829,7]
[373283983,1752927119512,-62059.38203774,0.00031831,30]
[373283984,1752927119521,-2500.0,0.00031837,7]
[373283985,1752927119531,-800.0,0.00031865,7]
[373283986,1752927119540,-800.0,0.00031869,7]
[373283987,1752927119551,-897.60227261,0.0003187,30]
[373283988,1752927119560,-681.03416829,0.0003187,30]
[373283989,1752927119570,-1122.3846211,0.0003187,30]
[373283990,1752927119579,-3000.0,0.0003188,120]
[373283991,1752927119592,-500.0,0.00031881,7]
[373283992,1752927119603,-600.0,0.00031888,7]
[373283993,1752927119612,-652.27145619,0.00031918,120]
[373283994,1752927119625,-800.0,0.00031919,7]
[373283995,1752927119636,-800.0,0.00031946,7]
[373283996,1752927119646,-800.0,0.00031968,7]
[373283997,1752927119656,-2500.0,0.00031984,7]
[373283998,1752927119667,-500.0,0.00031985,7]
[373283999,1752927119678,-2500.0,0.00031988,7]
[373284000,1752927119687,-1600.0,0.00031995,7]
[373284001,1752927119697,-1545.22140435,0.00032,2]
[373284002,1752927119707,-155.62695192,0.00032,30]
[373284003,1752927119718,-500.0,0.00032,120]
[373284004,1752927119727,-240.106359,0.00032,40]
[373284005,1752927119738,-7592.46639062,0.00032,14]
[373284006,1752927119748,-900.0,0.00032,33]
[373284007,1752927119758,-158.29871429,0.00032,120]
[373284008,1752927119767,-153.0,0.00032,120]
[373284009,1752927119777,-726.0,0.00032,30]
[373284010,1752927119788,-182.0,0.00032,30]
[373284011,1752927119798,-1000.0,0.00032,30]
[373284012,1752927119809,-800.0,0.00032,30]
[373284013,1752927119820,-1669.99,0.00032,120]
[373284014,1752927119830,-4000.0,0.00032,4]
[373284015,1752927119840,-500.0,0.0003204,7]
[373284016,1752927119849,-1000.0,0.00032055,120]
[373284017,1752927119859,-1000.0,0.00032055,120]
[373284018,1752927119868,-600.0,0.00032063,7]
[373284019,1752927119878,-504.0,0.00032075,8]
[373284020,1752927119888,-900.0,0.00032081,7]
[373284021,1752927119898,-800.0,0.00032089,7]
[373284022,1752927119908,-600.0,0.00032089,7]
[373284023,1752927119917,-900.0,0.00032096,7]
[373284024,1752927119927,-500.0,0.00032124,7]
[373284025,1752927119938,-900.0,0.00032124,7]
[373284026,1752927119947,-1000.0,0.00032124,7]
[373284027,1752927119957,-900.0,0.00032143,7]
[373284028,1752927119967,-600.0,0.00032182,7]
[373284029,1752927119977,-1000.0,0.00032192,120]
[373284030,1752927119987,-897.60227261,0.00032224,30]
[373284031,1752927119996,-681.03416829,0.00032224,30]
[373284032,1752927120006,-1122.3846211,0.00032224,30]
[373284033,1752927120017,-500.0,0.00032248,7]
[373284034,1752927120027,-600.0,0.00032248,7]
[373284035,1752927120037,-900.0,0.00032252,7]
[373284036,1752927120046,-2500.0,0.00032252,7]
[373284037,1752927120056,-1000.0,0.00032262,7]
[373284038,1752927120065,-1600.0,0.00032266,7]
[373284039,1752927120076,-800.0,0.00032292,7]
[373284040,1752927120086,-307.0212052,0.000323,2]
[373284041,1752927120101,-563.79102,0.000323,2]
[373284042,1752927120112,-500.0,0.00032307,7]
[373284043,1752927120122,-1593.1225947,0.00032311,7]
[373284044,1752927120134,-576.0476044,0.00032311,7]
[373284045,1752927120554,-480.0,0.00019178,2]
[373284046,1752927120564,-486.24,0.00019178,2]
[373284047,1752927120574,-480.0,0.00019945,2]
[373284048,1752927120583,-480.0,0.00020054,2]
[373284049,1752927120597,-480.0,0.00020164,2]
[373284050,1752927120607,-480.0,0.00020273,2]
[373284051,1752927120680,-480.0,0.00020383,2]
[373284052,1752927120690,-480.0,0.00020493,2]
[373284053,1752927120699,-480.0,0.00020602,2]
[373284054,1752927120709,-480.0,0.00020712,2]
[373284055,1752927120718,-230.84,0.00020821,2]
[373284056,1752927120727,-569.84,0.00021041,2]
[373284057,1752927120737,-569.84,0.0002115,2]
[373284058,1752927120746,-569.84,0.0002126,2]
[373284059,1752927120758,-569.84,0.00021369,2]
[373284060,1752927120768,-569.84,0.00021479,2]
[373284061,1752927120777,-569.84,0.00021589,2]
[373284062,1752927120787,-570.06840067,0.00021698,2]
[373284063,1752927120797,-500.0,0.00023,2]
[373284064,1752927120807,-330.8298009,0.00032311,7]
[373284065,1752927120817,-1600.0,0.00032313,7]
[373284066,1752927120827,-1600.0,0.00032319,7]
[373284067,1752927120836,-1000.0,0.00032329,120]
[373284068,1752927120847,-1000.0,0.00032329,120]
[373284069,1752927120856,-1000.0,0.00032407,7]
[373284070,1752927120867,-600.0,0.00032418,7]
[373284071,1752927120876,-76.85881321,0.00032433,7]
[373284072,1752927120887,-423.14118679,0.00032433,7]
[373284073,1752927120897,-800.0,0.00032447,7]
[373284074,1752927120907,-1000.0,0.00032466,120]
[373284075,1752927120916,-2000.0,0.00032474,31]
[373284076,1752927120926,-800.0,0.00032474,7]
[373284077,1752927120935,-513.92683273,0.00032483,7]
[373284078,1752927120945,-1086.50977845,0.000325,2]
[373284079,1752927120955,-379.55538488,0.000325,30]
[373284080,1752927120971,-159.16104839,0.0002116,2]
[373284081,1752927120981,-620.44461512,0.000325,30]
[373284082,1752927120990,-5141.247,0.000325,7]
[373284083,1752927121002,-775.91476088,0.000325,7]
[373284084,1752927121014,-4280.0006,0.000325,7]
[373284085,1752927121030,-85.33163912,0.000325,7]
[373284086,1752927121040,-5141.247,0.000325,7]
[373284087,1752927121050,-5141.247,0.000325,7]
[373284088,1752927121059,-1327.17436088,0.000325,7]
[373284089,1752927121138,-3814.07263912,0.000325,7]
[373284090,1752927121148,-800.0,0.00032507,7]
[373284091,1752927121158,-500.0,0.00032513,7]
[373284092,1752927121167,-500.0,0.00032522,7]
[373284093,1752927121177,-1000.0,0.00032541,7]
[373284094,1752927121187,-897.60227261,0.00032579,30]
[373284095,1752927121197,-681.03416829,0.00032579,30]
[373284096,1752927121206,-1122.3846211,0.00032579,30]
[373284097,1752927121215,-1000.0,0.00032603,120]
[373284098,1752927121225,-1000.0,0.00032603,120]
[373284099,1752927121235,-900.0,0.00032603,7]
[373284100,1752927121244,-670.40629887,0.0003261,7]
[373284101,1752927121257,-229.59370113,0.0003261,7]
[373284102,1752927121267,-496.0,0.00032622,14]
[373284103,1752927121277,-2500.0,0.00032625,7]
[373284104,1752927121287,-976.02643393,0.00032625,7]
[373284105,1752927121296,-900.0,0.00032656,7]
[373284106,1752927121305,-190.48803254,0.00032659,7]
[373284107,1752927121314,-1600.0,0.00032666,7]
[373284108,1752927121324,-500.0,0.00032673,7]
[373284109,1752927121334,-800.0,0.00032679,7]
[373284110,1752927121344,-1000.0,0.00032685,7]
[373284111,1752927121353,-2500.0,0.00032692,7]
[373284112,1752927121363,-300.0,0.000327,2]
[373284113,1752927121372,-300.0,0.000327,2]
[373284114,1752927121381,-300.0,0.000327,2]
[373284115,1752927121391,-300.0,0.000327,2]
[373284116,1752927121400,-325.46225517,0.000327,2]
[373284117,1752927121409,-2100.0,0.00032701,7]
[373284118,1752927121419,-2500.0,0.00032722,7]
[373284119,1752927121429,-1000.0,0.0003274,120]
[373284120,1752927121439,-800.0,0.0003274,7]
[373284121,1752927121449,-1600.0,0.00032784,7]
[373284122,1752927121464,-4696.86144067,0.000328,2]
[373284123,1752927121474,-200.0,0.0003281,3]
[373284124,1752927121485,-800.0,0.00032811,7]
[373284125,1752927121495,-287.61899177,0.00032822,2]
[373284126,1752927121506,-633.0,0.00032847,120]
[373284127,1752927121516,-633.0,0.00032847,120]
[373284128,1752927121526,-633.0,0.00032857,120]
[373284129,1752927121536,-633.0,0.00032857,120]
[373284130,1752927121546,-633.0,0.00032857,120]
[373284131,1752927121555,-633.0,0.00032867,120]
[373284132,1752927121565,-633.0,0.00032867,120]
[373284133,1752927121575,-633.0,0.00032867,120]
[373284134,1752927121585,-460.0,0.00032876,7]
[373284135,1752927121597,-454.81974292,0.00032876,2]
[373284136,1752927121607,-500.0,0.00032876,2]
[373284137,1752927121616,-508.64551994,0.00032876,2]
[373284138,1752927121625,-500.0,0.00032876,2]
[373284139,1752927121635,-500.0,0.00032876,2]
[373284140,1752927121644,-508.77886965,0.00032876,2]
[373284141,1752927121654,-500.0,0.00032876,2]
[373284142,1752927121664,-500.0,0.00032876,2]
[373284143,1752927121675,-500.0,0.00032876,2]
[373284144,1752927121686,-355.25777544,0.00032876,2]
[373284145,1752927121695,-500.0,0.00032876,2]
[373284146,1752927121704,-360.04837015,0.00032876,2]
[373284147,1752927121714,-193.91363035,0.00032876,2]
[373284148,1752927121723,-409.57025516,0.00032876,2]
[373284149,1752927121733,-800.0,0.00032876,7]
[373284150,1752927121743,-335.1,0.00032877,2]
[373284151,1752927121754,-206.39,0.00032877,2]
[373284152,1752927121764,-1304.0,0.00032877,2]
[373284153,1752927121774,-1000.0,0.00032877,120]
[373284154,1752927121783,-1000.0,0.00032877,120]
[373284155,1752927121793,-500.0,0.00032877,7]
[373284156,1752927121803,-500.0,0.00032877,7]
[373284157,1752927121812,-216.82341907,0.00032877,7]
[373284158,1752927121822,-500.0,0.00032877,7]
[373284159,1752927121832,-500.0,0.00032877,7]
[373284160,1752927121841,-500.0,0.00032877,7]
[373284161,1752927121851,-500.0,0.00032877,7]
[373284162,1752927121860,-500.0,0.00032877,7]
[373284163,1752927121870,-500.0,0.00032877,7]
[373284164,1752927121879,-500.0,0.00032877,7]
[373284165,1752927121888,-500.0,0.00032877,7]
[373284166,1752927121898,-500.0,0.00032877,7]
[373284167,1752927121907,-500.0,0.00032877,7]
[373284168,1752927121917,-451.41077159,0.00032877,7]
[373284169,1752927121926,-500.0,0.00032877,7]
[373284170,1752927121936,-500.0,0.00032877,7]
[373284171,1752927121947,-500.0,0.00032877,7]
[373284172,1752927121956,-500.0,0.00032877,7]
[373284173,1752927121966,-500.0,0.00032877,7]
[373284174,1752927121975,-500.0,0.00032877,7]
[373284175,1752927121985,-500.0,0.00032877,7]
[373284176,1752927121995,-500.0,0.00032877,7]
[373284177,1752927122005,-500.0,0.00032877,7]
[373284178,1752927122014,-500.0,0.00032877,7]
[373284179,1752927122024,-500.0,0.00032877,7]
[373284180,1752927122035,-500.0,0.00032877,7]
[373284181,1752927122044,-500.0,0.00032877,7]
[373284182,1752927122055,-300.0,0.00032877,7]
[373284183,1752927122065,-500.0,0.00032877,7]
[373284184,1752927122075,-500.0,0.00032877,7]
[373284185,1752927122084,-500.0,0.00032877,7]
[373284186,1752927122094,-500.0,0.00032877,7]
[373284187,1752927122103,-500.0,0.00032877,7]
[373284188,1752927122112,-500.0,0.00032877,7]
[373284189,1752927122122,-200.0,0.00032877,7]
[373284190,1752927122133,-500.0,0.00032877,7]
[373284191,1752927122147,-500.0,0.00032877,7]
[373284192,1752927122158,-500.0,0.00032877,7]
[373284193,1752927122168,-500.0,0.00032877,7]
[373284194,1752927122177,-500.0,0.00032877,7]
[373284195,1752927122187,-500.0,0.00032877,7]
[373284196,1752927122197,-500.0,0.00032877,7]
[373284197,1752927122206,-500.0,0.00032877,7]
[373284198,1752927122216,-500.0,0.00032877,7]
[373284199,1752927122226,-500.0,0.00032877,7]
[373284200,1752927122235,-500.0,0.00032877,7]
[373284201,1752927122244,-898.0,0.00032877,2]
[373284202,1752927122255,-3000.0,0.0003288,120]
[373284203,1752927122265,-2000.0,0.000329,2]
[373284204,1752927122275,-1000.0,0.00032912,7]
[373284205,1752927122284,-1000.0,0.00032922,7]
[373284206,1752927122294,-800.0,0.00032927,7]
[373284207,1752927122303,-1600.0,0.00032929,7]
[373284208,1752927122313,-897.60227261,0.00032933,30]
[373284209,1752927122323,-681.03416829,0.00032933,30]
[373284210,1752927122332,-1122.3846211,0.00032933,30]
[373284211,1752927122342,-800.0,0.00032965,7]
[373284212,1752927122351,-575.90874204,0.00032977,7]
[373284213,1752927122361,-2100.0,0.00032997,7]
[373284214,1752927122371,-25337.95447373,0.00033,2]
[373284215,1752927122381,-24632.79,0.00033,14]
[373284216,1752927122391,-500.0,0.00033,120]
[373284217,1752927122401,-900.0,0.00033,34]
[373284218,1752927122412,-271.06412165,0.00033,120]
[373284219,1752927122421,-48383.58153508,0.00033,30]
[373284222,1752927290025,152.0,0.00025,120]
[373284223,1752927324154,150.42716981,0.00023,30]
[373284224,1752927331431,315.15645857,0.000211,28]
[373284261,1752927921561,7606.59357943,9e-05,2]
[373284262,1752927921583,2719.1960633,9e-05,2]
[373284263,1752927927457,1004.29059933,0.000108,2]
[373284264,1752927938427,11276.51333737,9e-05,2]
[373284265,1752927938448,13281.47772949,9e-05,2]
[373284266,1752927945506,-7953.21094412,0.00016973,2]
[373284271,1752928011463,468.71,0.00016925,2]
[373284272,1752928012257,195.80586319,0.000169,2]
[373284274,1752928018170,176.92,0.00013699,2]
[373284275,1752928021715,1062.21440351,0.00016973,2]
[373284277,1752928079480,143.13878918,0.00016851,2]
[373284289,1752928120611,1718.52227051,0.000151,2]
[373284290,1752928120635,3946.37772949,0.000151,2]
[373284304,1752928207743,250.0,0.00015,2]
[373284305,1752928217212,-403.69,0.00016393,2]
[373284306,1752928217234,-250.0,0.00016622,2]
[373284307,1752928217255,-250.0,0.00016793,2]
[373284308,1752928217277,-356.86121082,0.00016851,2]
[373284309,1752928217299,-329.62944129,0.000169,2]
[373284310,1752928217320,-444.10412943,0.000169,2]
[373284311,1752928217352,-444.10412942,0.00016908,2]
[373284312,1752928217379,-329.62944124,0.0001691,2]
[373284313,1752928217403,-444.10412942,0.00016916,2]
[373284314,1752928217426,-300.0,0.00016919,2]
[373284315,1752928217449,-329.62944124,0.00016921,2]
[373284316,1752928217471,-444.10412942,0.00016924,2]
[373284317,1752928217493,-329.62944124,0.00016931,2]
[373284318,1752928217516,-444.10412942,0.00016932,2]
[373284319,1752928217544,-444.10412942,0.00016941,2]
[373284320,1752928217568,-329.62944124,0.00016942,2]
[373284321,1752928217591,-444.10412942,0.00016949,2]
[373284322,1752928217614,-329.62944124,0.00016952,2]
[373284323,1752928217637,-444.10412942,0.00016957,2]
[373284324,1752928218104,-329.62944124,0.00016963,2]
[373284325,1752928218129,-1200.0,0.00016964,2]
[373284326,1752928218152,-444.10412942,0.00016965,2]
[373284327,1752928218175,-300.0,0.00016967,2]
[373284328,1752928218199,-300.0,0.00016972,2]
[373284329,1752928218223,-180.0,0.00016972,2]
[373284330,1752928218246,-503.91069887,0.00016973,2]
[373284331,1752928218268,-500.0,0.00016973,2]
[373284332,1752928218291,-500.0,0.00016973,2]
[373284333,1752928218313,-503.97533076,0.00016973,2]
[373284334,1752928218335,-500.0,0.00016973,2]
[373284335,1752928218357,-500.0,0.00016973,2]
[373284336,1752928218379,-500.0,0.00016973,2]
[373284337,1752928218402,-329.62944124,0.00016973,2]
[373284338,1752928218424,-444.10412942,0.00016973,2]
[373284339,1752928218446,-228.64653747,0.00016973,2]
[373284340,1752928218469,-156.39173629,0.00016973,2]
[373284341,1752928218493,-488.44766161,0.00016987,2]
[373284342,1752928219812,-511.55233839,0.00016987,2]
[373284343,1752928219835,-187.27,0.0001699,2]
[373284344,1752928219858,-187.27,0.0001699,2]
[373284345,1752928219880,-1200.0,0.00016999,2]
[373284346,1752928219903,-150.0,0.00016999,2]
[373284347,1752928219926,-221.63155264,0.00016999,2]
[373284348,1752928219948,-299.56088417,0.00016999,2]
[373284349,1752928219971,-150.0,0.00016999,2]
[373284350,1752928219997,-224.71107942,0.00016999,2]
[373284351,1752928220021,-11868.00414538,0.00017,2]
[373284352,1752928220231,-15000.0,0.00017,2]
[373284353,1752928220625,-15000.0,0.00017,2]
[373284354,1752928221032,-15000.0,0.00017,2]
[373284355,1752928221728,-15000.0,0.00017,2]
[373284356,1752928222791,-15000.0,0.00017,2]
[373284357,1752928223806,-15000.0,0.00017,2]
[373284358,1752928227773,-177.527477,0.0001699,2]
[373284359,1752928227795,-14822.472523,0.00017,2]
[373284360,1752928228504,-15000.0,0.00017,2]
[373284361,1752928228927,-15000.0,0.00017,2]
[373284362,1752928229271,-15000.0,0.00017,2]
[373284363,1752928229795,-15000.0,0.00017,2]
[373284364,1752928230716,-15000.0,0.00017,2]
[373284365,1752928231097,-15000.0,0.00017,2]
[373284373,1752928232136,-15000.0,0.00017,2]
[373284377,1752928232165,-378.97061588,0.00017,2]
[373284379,1752928232176,-1080.16474673,0.00017,2]
[373284385,1752928233089,-15000.0,0.00017,2]
[373284386,1752928235657,-15000.0,0.00017,2]
[373284387,1752928236090,-15000.0,0.00017,2]
[373284388,1752928236354,-15000.0,0.00017,2]
[373284389,1752928236843,-15000.0,0.00017,2]
[373284390,1752928237260,-15000.0,0.00017,2]
[373284391,1752928237788,-4697.61221139,0.00017,2]
[373284392,1752928237817,-15000.0,0.00017,2]
[373284393,1752928237843,-193794.82851117,0.00017,2]
[373284394,1752928237855,-16230.7741465,0.00017,2]
[373284396,1752928237866,-27679.59977741,0.00017,2]
[373284399,1752928237886,-664.06530526,0.00017,2]
[373284402,1752928237898,-14001.62474617,0.00017,2]
[373284404,1752928237909,-19761.59308096,0.00017,2]
[373284406,1752928237920,-8743.7245368,0.00017,2]
[373284417,1752928237967,-15000.0,0.00017,2]
[373284421,1752928237984,-692.74999987,0.00017,2]
[373284430,1752928238097,-402567.58131303,0.00017,2]
[373284431,1752928238108,-11245568.40031427,0.00017,2]
[373284432,1752928238130,-2508.02882534,0.00017,2]
[373284433,1752928238143,-8779.55034603,0.00017,2]
[373284434,1752928238154,-541.54970916,0.00017,2]
[373284435,1752928238322,-2351.8565,0.00017,2]
[373284437,1752928238429,-15000.0,0.00017,2]
[373284486,1752928238937,-15000.0,0.00017,2]
[373285285,1752928245916,-300.0,0.000162,5]
[373285287,1752928245926,-600.0,0.000163,5]
[373285289,1752928245935,-3004.86614193,0.00017,2]
[373285291,1752928245946,-881.27311473,0.00017,2]
[373285293,1752928245957,-2203.76813633,0.00017,2]
[373285297,1752928245979,-16505.9578731,0.00017,2]
[373285312,1752928246114,-1000.0,0.000164,5]
[373285314,1752928246123,-4435994.13424806,0.00017,2]
[373285316,1752928246133,-300.0,0.00017,2]
[373285318,1752928246143,-795.13,0.00017073,2]
[373285320,1752928246152,-164.94,0.00017073,2]
[373285322,1752928246163,-2949.37,0.00017073,2]
[373285324,1752928246172,-500.0,0.00017128,2]
[373285326,1752928246181,-218.79498406,0.00017128,2]
[373285328,1752928246191,-1901.6,0.00017178,2]
[373285330,1752928246200,-156.32,0.00017307,2]
[373285332,1752928246210,-151.0,0.00017339,2]
[373285334,1752928246221,-151.0,0.0001734,2]
[373285336,1752928246230,-151.0,0.0001734,2]
[373285338,1752928246239,-151.0,0.00017344,2]
[373285340,1752928246248,-151.0,0.00017351,2]
[373285342,1752928246258,-151.0,0.00017351,2]
[373285344,1752928246268,-1213.83,0.00017353,2]
[373285346,1752928246277,-151.0,0.00017356,2]
[373285348,1752928246287,-169.03,0.00017433,2]
[373285350,1752928246296,-23900.0,0.00017483,2]
[373285352,1752928246305,-19500.31449246,0.000175,2]